fUSD/lending_fUSD_20250208
["ID","MTS","AMOUNT","RATE_DAILY","PERIOD"]
[352282606,1739026270007,-855.76,0.00010821,2]
[352282607,1739026270018,-500.0,0.00010821,2]
[352282608,1739026270028,-500.0,0.00010821,2]
[352282609,1739026270039,-500.0,0.00010821,2]
[352282610,1739026270049,-500.0,0.00010821,2]
[352282611,1739026270059,-1052.13,0.00010821,2]
[352282612,1739026270068,-500.0,0.00010821,2]
[352282613,1739026270078,-934.78,0.00010821,2]
[352282614,1739026270088,-500.0,0.00010821,2]
[352282615,1739026270098,-500.0,0.00010821,2]
[352282616,1739026270108,-500.0,0.00010821,2]
[352282617,1739026270118,-2206.29,0.00010821,2]
[352282618,1739026270131,-528.4,0.00010821,2]
[352282619,1739026270141,-1147.02,0.00010821,2]
[352282620,1739026270152,-500.0,0.00010821,2]
[352282621,1739026270161,-2642.41,0.00010821,2]
[352282622,1739026270171,-500.0,0.00010821,2]
[352282623,1739026270182,-500.0,0.00010821,2]
[352282624,1739026270192,-972.34,0.00010821,2]
[352282625,1739026270203,-2127.470822,0.00010821,2]
[352282626,1739026270214,-552.39,0.00010821,2]
[352282627,1739026270224,-500.0,0.00010821,2]
[352282628,1739026270234,-500.0,0.00010821,2]
[352282629,1739026270245,-1133.72,0.00010821,2]
[352282630,1739026270256,-855.37,0.00010821,2]
[352282631,1739026270265,-500.0,0.00010821,2]
[352282632,1739026270275,-1695.0,0.00010821,2]
[352282633,1739026270285,-626.07,0.00010821,2]
[352282634,1739026270295,-500.0,0.00010821,2]
[352282635,1739026270305,-500.0,0.00010821,2]
[352282636,1739026270314,-1409.43,0.00010821,2]
[352282637,1739026270326,-1046.27,0.00010821,2]
[352282638,1739026270336,-500.0,0.00010821,2]
[352282639,1739026270347,-500.0,0.00010821,2]
[352282640,1739026270357,-1819.147157,0.00010821,2]
[352282641,1739026270367,-1167.45,0.00010821,2]
[352282642,1739026270376,-500.0,0.00010821,2]
[352282643,1739026270386,-1148.79,0.00010821,2]
[352282644,1739026270396,-500.0,0.00010821,2]
[352282645,1739026270406,-833.83,0.00010821,2]
[352282646,1739026270416,-1505.15,0.00010821,2]
[352282647,1739026270426,-500.0,0.00010821,2]
[352282648,1739026270436,-638.54725306,0.00010821,2]
[352282649,1739026270446,-986.26,0.00010821,2]
[352282650,1739026270456,-500.0,0.00010821,2]
[352282651,1739026270466,-1777.8,0.00010821,2]
[352282652,1739026270477,-1256.33,0.00010821,2]
[352282653,1739026270487,-582.44,0.00010821,2]
[352282654,1739026270497,-500.0,0.00010821,2]
[352282655,1739026270507,-500.0,0.00010821,2]
[352282656,1739026270517,-1138.32,0.00010821,2]
[352282657,1739026270527,-500.0,0.00010821,2]
[352282658,1739026270539,-1649.27,0.00010821,2]
[352282659,1739026270549,-2266.83,0.00010821,2]
[352282660,1739026270559,-589.43938948,0.00010821,2]
[352282661,1739026270569,-500.0,0.00010821,2]
[352282662,1739026270579,-500.0,0.00010821,2]
[352282663,1739026270590,-1948.92,0.00010821,2]
[352282664,1739026270600,-5772.15,0.00010821,2]
[352282665,1739026270610,-500.0,0.00010821,2]
[352282666,1739026270620,-2764.98,0.00010821,2]
[352282667,1739026270630,-500.0,0.00010821,2]
[352282668,1739026270640,-544.24706232,0.00010821,2]
[352282669,1739026270650,-4071.61,0.00010821,2]
[352282670,1739026270660,-500.0,0.00010821,2]
[352282671,1739026270670,-556.12,0.00010821,2]
[352282672,1739026270680,-1437.93,0.00010821,2]
[352282673,1739026270690,-390.78744761,0.00010821,2]
[352282674,1739026270701,-500.0,0.00010821,2]
[352282675,1739026270711,-562.48549259,0.00010821,2]
[352282676,1739026270721,-168.90455467,0.00010821,2]
[352282677,1739026270731,-1065.03,0.00010821,2]
[352282678,1739026270742,-500.0,0.00010821,2]
[352282679,1739026270752,-856.9,0.00010821,2]
[352282680,1739026270763,-500.0,0.00010821,2]
[352282681,1739026270772,-2557.02,0.00010821,2]
[352282682,1739026270783,-500.0,0.00010821,2]
[352282683,1739026270796,-2691.93,0.00010821,2]
[352282684,1739026270806,-1075.04,0.00010821,2]
[352282685,1739026270816,-2127.64,0.00010821,2]
[352282686,1739026270827,-1562.42,0.00010821,2]
[352282687,1739026270837,-500.0,0.00010821,2]
[352282688,1739026270847,-1254.87,0.00010821,2]
[352282689,1739026270857,-1365.08,0.00010821,2]
[352282690,1739026270868,-625.68,0.00010821,2]
[352282691,1739026270878,-27791.54881314,0.00010835,2]
[352282692,1739026270888,-1416.97354489,0.0001084,2]
[352282693,1739026270898,-467.08924521,0.0001084,2]
[352282694,1739026270908,-154.16148571,0.00010847,2]
[352282695,1739026270918,-250.0,0.0001086,2]
[352282696,1739026270928,-2209.0,0.00010878,2]
[352282697,1739026270938,-545.74,0.00010879,2]
[352282698,1739026270951,-500.0,0.00010879,2]
[352282699,1739026270962,-500.0,0.00010879,2]
[352282700,1739026270972,-637.14,0.00010879,2]
[352282701,1739026270982,-3545836.49109462,0.0001088,2]
[352282702,1739026271353,-1016.46981003,0.0001088,2]
[352282703,1739026271377,-3450.54412393,0.0001088,2]
[352282704,1739026271393,-518.19852161,0.0001088,2]
[352282705,1739026271405,-1520.0,0.0001088,2]
[352282706,1739026271417,-1231.8115,0.0001088,2]
[352282707,1739026271430,-1330.55565,0.0001088,2]
[352282708,1739026271444,-599.72126579,0.0001088,2]
[352282709,1739026272092,-22.52815858,9.998e-05,2]
[352282710,1739026272687,-477.47184142,9.998e-05,2]
[352282711,1739026272696,-483.56815858,9.998e-05,2]
[352282713,1739026397392,2000.0,0.0002,120]
[352282714,1739026397758,2000.0,0.0002,120]
[352282715,1739026398060,2000.0,0.0002,120]
[352282716,1739026398529,2000.0,0.0002,120]
[352282717,1739026399369,2000.0,0.0002,120]
[352282718,1739026399693,2000.0,0.0002,120]
[352282719,1739026399980,2000.0,0.0002,120]
[352282720,1739026400356,2000.0,0.0002,120]
[352282721,1739026400826,2000.0,0.0002,120]
[352282722,1739026401247,2000.0,0.0002,120]
[352282723,1739026445536,2462.0,0.0002,120]
[352282724,1739026504600,337.0,9.998e-05,30]
[352282725,1739026504919,337.0,0.0001063,30]
[352282726,1739026505244,337.0,0.00011261,30]
[352282727,1739026505572,337.0,0.00011893,30]
[352282728,1739026505918,337.0,0.00012525,30]
[352282732,1739026689326,3000.0,0.0002,120]
[352282733,1739026804263,354.0,9.998e-05,30]
[352282734,1739026804574,354.0,0.0001063,30]
[352282735,1739026804935,354.0,0.00011261,30]
[352282736,1739026805381,354.0,0.00011893,30]
[352282737,1739026805776,354.0,0.00012525,30]
[352282738,1739026818795,711.0,0.0002,120]
[352282740,1739026965617,500.0,0.0002,120]
[352282741,1739027103867,365.0,9.998e-05,30]
[352282742,1739027104726,365.0,0.0001063,30]
[352282743,1739027105055,365.0,0.00011261,30]
[352282744,1739027105365,365.0,0.00011893,30]
[352282745,1739027105673,365.0,0.00012525,30]
[352282746,1739027404077,153.0,9.998e-05,30]
[352282747,1739027407756,153.0,0.00011713,30]
[352282754,1739027432087,-841.5,8.219e-05,2]
[352282755,1739027432097,-300.0,8.972e-05,2]
[352282756,1739027432107,-712.71643839,8.973e-05,2]
[352282757,1739027432158,-62.36676161,8.973e-05,2]
[352282758,1739027432167,-3851.99461628,8.973e-05,2]
[352282759,1739027432274,-1148.00538372,8.973e-05,2]
[352282760,1739027432284,-758.46,9.175e-05,2]
[352282761,1739027432294,-661.92,9.213e-05,2]
[352282762,1739027432303,-165.34,9.213e-05,2]
[352282763,1739027432312,-3446.81175735,9.213e-05,2]
[352282764,1739027432321,-197.53,9.248e-05,2]
[352282765,1739027432330,-1671.82,9.249e-05,2]
[352282766,1739027432339,-165.34,9.371e-05,2]
[352282767,1739027432347,-849.31,9.612e-05,2]
[352282768,1739027432357,-420.0,9.869e-05,2]
[352282769,1739027432366,-630.46846877,9.998e-05,2]
[352282770,1739027432375,-286.26720155,9.998e-05,2]
[352282771,1739027432383,-500.0,9.998e-05,2]
[352282772,1739027432392,-500.0,9.998e-05,2]
[352282773,1739027432403,-564.93,9.998e-05,2]
[352282774,1739027432412,-500.0,9.998e-05,2]
[352282775,1739027432421,-500.0,9.998e-05,2]
[352282776,1739027432431,-500.0,9.998e-05,2]
[352282777,1739027432439,-500.0,9.998e-05,2]
[352282778,1739027432448,-451.62113119,9.998e-05,2]
[352282779,1739027432459,-500.0,9.998e-05,2]
[352282780,1739027432471,-895.11,9.998e-05,2]
[352282781,1739027432491,-500.0,9.998e-05,2]
[352282782,1739027432506,-500.0,9.998e-05,2]
[352282783,1739027432515,-500.0,9.998e-05,2]
[352282784,1739027432523,-706.98,9.998e-05,2]
[352282785,1739027432532,-704.42,9.998e-05,2]
[352282786,1739027432541,-500.0,9.998e-05,2]
[352282787,1739027432550,-500.0,9.998e-05,2]
[352282788,1739027432559,-500.0,9.998e-05,2]
[352282789,1739027432567,-929.43,9.998e-05,2]
[352282790,1739027432576,-500.0,9.998e-05,2]
[352282791,1739027432585,-500.0,9.998e-05,2]
[352282792,1739027432594,-673.68,9.998e-05,2]
[352282793,1739027432603,-500.0,9.998e-05,2]
[352282794,1739027432612,-500.0,9.998e-05,2]
[352282795,1739027432621,-500.0,9.998e-05,2]
[352282796,1739027432630,-777.17,9.998e-05,2]
[352282797,1739027432640,-500.0,9.998e-05,2]
[352282798,1739027432650,-585.11,9.998e-05,2]
[352282799,1739027432659,-500.0,9.998e-05,2]
[352282801,1739027432668,-500.0,9.998e-05,2]
[352282803,1739027432677,-500.0,9.998e-05,2]
[352282806,1739027432686,-500.0,9.998e-05,2]
[352282809,1739027432695,-500.0,9.998e-05,2]
[352282812,1739027432704,-500.0,9.998e-05,2]
[352282815,1739027432714,-500.0,9.998e-05,2]
[352282817,1739027432723,-500.0,9.998e-05,2]
[352282820,1739027432732,-500.0,9.998e-05,2]
[352282822,1739027432741,-500.0,9.998e-05,2]
[352282824,1739027432750,-530.13,9.998e-05,2]
[352282826,1739027432760,-698.16,9.998e-05,2]
[352282828,1739027432769,-830.25,9.998e-05,2]
[352282830,1739027432778,-500.0,9.998e-05,2]
[352282832,1739027432787,-500.0,9.998e-05,2]
[352282834,1739027432796,-500.0,9.998e-05,2]
[352282836,1739027432806,-500.0,9.998e-05,2]
[352282838,1739027432816,-521.61,9.998e-05,2]
[352282840,1739027432825,-500.0,9.998e-05,2]
[352282842,1739027432835,-500.0,9.998e-05,2]
[352282844,1739027432844,-873.7,9.998e-05,2]
[352282846,1739027432853,-697.66,9.998e-05,2]
[352282848,1739027432863,-500.0,9.998e-05,2]
[352282850,1739027432872,-500.0,9.998e-05,2]
[352282852,1739027432882,-156.19188,9.998e-05,2]
[352282854,1739027432891,-1327.3,9.998e-05,2]
[352282857,1739027432901,-500.0,9.998e-05,2]
[352282859,1739027432911,-1711.37,9.998e-05,2]
[352282860,1739027432920,-860.81,9.998e-05,2]
[352282863,1739027432930,-771.59,9.998e-05,2]
[352282865,1739027432939,-860.27,9.998e-05,2]
[352282867,1739027432949,-729.26,9.998e-05,2]
[352282869,1739027432958,-1377.258263,9.998e-05,2]
[352282871,1739027432967,-500.0,9.998e-05,2]
[352282872,1739027432977,-1981.81,9.998e-05,2]
[352282874,1739027432986,-500.0,9.998e-05,2]
[352282876,1739027432995,-641.52,9.998e-05,2]
[352282878,1739027433004,-500.0,9.998e-05,2]
[352282880,1739027433014,-1252.06936304,9.998e-05,2]
[352282885,1739027433045,-364.01397796,9.998e-05,2]
[352282887,1739027433055,-881.6,9.998e-05,2]
[352282889,1739027433064,-500.0,9.998e-05,2]
[352282891,1739027433073,-228.04602204,9.998e-05,2]
[352282895,1739027433110,-271.95397796,9.998e-05,2]
[352282897,1739027433120,-1271.25,9.998e-05,2]
[352282899,1739027433129,-155.445186,9.998e-05,2]
[352282901,1739027433139,-1057.07,9.998e-05,2]
[352282903,1739027433149,-500.0,9.998e-05,2]
[352282905,1739027433159,-500.0,9.998e-05,2]
[352282907,1739027433169,-500.0,9.998e-05,2]
[352282909,1739027433181,-500.0,9.998e-05,2]
[352282911,1739027433193,-500.0,9.998e-05,2]
[352282914,1739027433203,-536.28083604,9.998e-05,2]
[352282982,1739027438089,-248.41916396,9.998e-05,2]
[352282983,1739027438099,-664.37,9.998e-05,2]
[352282984,1739027438109,-500.0,9.998e-05,2]
[352282985,1739027438118,-861.59,9.998e-05,2]
[352282986,1739027438128,-1128.87,9.998e-05,2]
[352282987,1739027438137,-1598.9,9.998e-05,2]
[352282988,1739027438147,-875.59,9.998e-05,2]
[352282989,1739027438158,-739.7,9.998e-05,2]
[352282990,1739027438168,-500.0,9.998e-05,2]
[352282991,1739027438178,-942.25,9.998e-05,2]
[352282992,1739027438190,-1333.35,9.998e-05,2]
[352282993,1739027438200,-831.07,9.998e-05,2]
[352282994,1739027438210,-500.0,9.998e-05,2]
[352282995,1739027438220,-696.59,9.998e-05,2]
[352282996,1739027438232,-1700.12,9.998e-05,2]
[352282997,1739027438241,-1236.96,9.998e-05,2]
[352282998,1739027438251,-712.65,9.998e-05,2]
[352282999,1739027438261,-500.0,9.998e-05,2]
[352283000,1739027438270,-1461.69,9.998e-05,2]
[352283001,1739027438280,-500.0,9.998e-05,2]
[352283002,1739027438290,-853.74,9.998e-05,2]
[352283003,1739027438299,-1452.18,9.998e-05,2]
[352283004,1739027438309,-604.83,9.998e-05,2]
[352283005,1739027438318,-4329.11,9.998e-05,2]
[352283006,1739027438328,-1601.14,9.998e-05,2]
[352283007,1739027438337,-500.0,9.998e-05,2]
[352283008,1739027438346,-500.0,9.998e-05,2]
[352283009,1739027438355,-1781.32,9.998e-05,2]
[352283010,1739027438365,-1141.23,9.998e-05,2]
[352283011,1739027438375,-1183.91,9.998e-05,2]
[352283012,1739027438384,-541.79,9.998e-05,2]
[352283013,1739027438393,-500.0,9.998e-05,2]
[352283014,1739027438402,-1141.71,9.998e-05,2]
[352283015,1739027438414,-1141.27,9.998e-05,2]
[352283016,1739027438424,-1305.2,9.998e-05,2]
[352283017,1739027438433,-500.0,9.998e-05,2]
[352283018,1739027438443,-2041.3,9.998e-05,2]
[352283019,1739027438452,-500.0,9.998e-05,2]
[352283020,1739027438462,-1729.11,9.998e-05,2]
[352283021,1739027438472,-798.78,9.998e-05,2]
[352283022,1739027438481,-2018.95,9.998e-05,2]
[352283023,1739027438491,-883.1,9.998e-05,2]
[352283024,1739027438501,-642.68,9.998e-05,2]
[352283025,1739027438510,-815.54,9.998e-05,2]
[352283026,1739027438521,-500.0,9.998e-05,2]
[352283027,1739027438530,-1822.89,9.998e-05,2]
[352283028,1739027438540,-683.87,9.998e-05,2]
[352283029,1739027438551,-904.60155375,9.998e-05,2]
[352283030,1739027438561,-797.86,9.998e-05,2]
[352283031,1739027438570,-500.0,9.998e-05,2]
[352283032,1739027438580,-1171.81,9.998e-05,2]
[352283033,1739027438590,-1818.17,9.998e-05,2]
[352283034,1739027438599,-941.15,9.998e-05,2]
[352283035,1739027438609,-687.79,9.998e-05,2]
[352283036,1739027438619,-500.0,9.998e-05,2]
[352283037,1739027438628,-500.0,9.998e-05,2]
[352283039,1739027438638,-500.0,9.998e-05,2]
[352283040,1739027438648,-1023.81,9.998e-05,2]
[352283041,1739027438658,-500.0,9.998e-05,2]
[352283042,1739027438667,-1015.26,9.998e-05,2]
[352283043,1739027438677,-500.0,9.998e-05,2]
[352283044,1739027438686,-500.0,9.998e-05,2]
[352283045,1739027438695,-756.41,9.998e-05,2]
[352283046,1739027438705,-500.0,9.998e-05,2]
[352283047,1739027438715,-587.24,9.998e-05,2]
[352283048,1739027438724,-500.0,9.999e-05,2]
[352283049,1739027438733,-500.0,9.999e-05,2]
[352283050,1739027438743,-500.0,9.999e-05,2]
[352283051,1739027438752,-500.0,9.999e-05,2]
[352283052,1739027438765,-500.0,9.999e-05,2]
[352283053,1739027438775,-500.0,9.999e-05,2]
[352283054,1739027438785,-287.94516048,9.999e-05,2]
[352283055,1739027438794,-500.0,9.999e-05,2]
[352283056,1739027438803,-582.41147922,9.999e-05,2]
[352283057,1739027438812,-500.0,9.999e-05,2]
[352283058,1739027438821,-281.22712736,9.999e-05,2]
[352283059,1739027438831,-500.0,9.999e-05,2]
[352283060,1739027438840,-500.0,9.999e-05,2]
[352283061,1739027438849,-500.0,9.999e-05,2]
[352283062,1739027438859,-334.12027949,9.999e-05,2]
[352283063,1739027438868,-500.0,9.999e-05,2]
[352283064,1739027438877,-500.0,9.999e-05,2]
[352283065,1739027438887,-500.0,9.999e-05,2]
[352283066,1739027438896,-500.0,9.999e-05,2]
[352283067,1739027438906,-501.78357424,9.999e-05,2]
[352283068,1739027438915,-500.0,9.999e-05,2]
[352283069,1739027438924,-500.0,9.999e-05,2]
[352283070,1739027438934,-500.0,9.999e-05,2]
[352283071,1739027438944,-500.0,9.999e-05,2]
[352283072,1739027438953,-500.0,9.999e-05,2]
[352283073,1739027438962,-500.0,9.999e-05,2]
[352283074,1739027438971,-500.0,9.999e-05,2]
[352283075,1739027438981,-500.0,9.999e-05,2]
[352283076,1739027438990,-500.0,9.999e-05,2]
[352283077,1739027438999,-500.0,9.999e-05,2]
[352283078,1739027439009,-500.0,9.999e-05,2]
[352283079,1739027439240,-500.0,9.999e-05,2]
[352283080,1739027439251,-500.0,9.999e-05,2]
[352283081,1739027439261,-500.0,9.999e-05,2]
[352283082,1739027439270,-572.00391826,9.999e-05,2]
[352283083,1739027439280,-500.0,9.999e-05,2]
[352283084,1739027439290,-500.0,9.999e-05,2]
[352283085,1739027439298,-500.0,9.999e-05,2]
[352283086,1739027439308,-500.0,9.999e-05,2]
[352283087,1739027439318,-500.0,9.999e-05,2]
[352283088,1739027439327,-500.0,9.999e-05,2]
[352283089,1739027439336,-500.0,9.999e-05,2]
[352283090,1739027439345,-500.0,9.999e-05,2]
[352283091,1739027439354,-500.0,9.999e-05,2]
[352283092,1739027439364,-505.01764577,9.999e-05,2]
[352283093,1739027439373,-500.0,9.999e-05,2]
[352283094,1739027439382,-500.0,9.999e-05,2]
[352283095,1739027439391,-500.0,9.999e-05,2]
[352283096,1739027439400,-500.0,9.999e-05,2]
[352283097,1739027439410,-500.0,9.999e-05,2]
[352283098,1739027439420,-500.0,9.999e-05,2]
[352283099,1739027439429,-500.0,9.999e-05,2]
[352283100,1739027439438,-500.0,9.999e-05,2]
[352283101,1739027439447,-500.0,9.999e-05,2]
[352283102,1739027439456,-500.0,9.999e-05,2]
[352283103,1739027439465,-500.0,9.999e-05,2]
[352283104,1739027439474,-500.0,9.999e-05,2]
[352283105,1739027439484,-500.0,9.999e-05,2]
[352283106,1739027439493,-279.00972276,9.999e-05,2]
[352283107,1739027439502,-500.0,9.999e-05,2]
[352283108,1739027439512,-500.0,9.999e-05,2]
[352283109,1739027439521,-500.0,9.999e-05,2]
[352283110,1739027439530,-500.0,9.999e-05,2]
[352283111,1739027439540,-500.0,9.999e-05,2]
[352283112,1739027439549,-500.0,9.999e-05,2]
[352283113,1739027439558,-500.0,9.999e-05,2]
[352283114,1739027439568,-500.0,9.999e-05,2]
[352283115,1739027439578,-500.0,9.999e-05,2]
[352283116,1739027439587,-500.0,9.999e-05,2]
[352283117,1739027439595,-500.0,9.999e-05,2]
[352283118,1739027439609,-500.0,9.999e-05,2]
[352283119,1739027439624,-500.0,9.999e-05,2]
[352283120,1739027439634,-531.31761482,9.999e-05,2]
[352283121,1739027439643,-500.0,9.999e-05,2]
[352283122,1739027439652,-500.0,9.999e-05,2]
[352283123,1739027439663,-814.99,9.999e-05,2]
[352283124,1739027439682,-500.0,9.999e-05,2]
[352283125,1739027439693,-500.0,9.999e-05,2]
[352283126,1739027439703,-500.0,9.999e-05,2]
[352283127,1739027439713,-500.0,9.999e-05,2]
[352283128,1739027439723,-500.0,9.999e-05,2]
[352283129,1739027439734,-500.0,9.999e-05,2]
[352283130,1739027439744,-500.0,9.999e-05,2]
[352283131,1739027439754,-500.0,9.999e-05,2]
[352283132,1739027439764,-500.0,9.999e-05,2]
[352283133,1739027439773,-716.8,9.999e-05,2]
[352283134,1739027439783,-500.0,9.999e-05,2]
[352283135,1739027439793,-500.0,9.999e-05,2]
[352283136,1739027439803,-500.0,9.999e-05,2]
[352283137,1739027439813,-567.9,9.999e-05,2]
[352283139,1739027439823,-500.0,9.999e-05,2]
[352283141,1739027439833,-500.0,9.999e-05,2]
[352283143,1739027439843,-500.0,9.999e-05,2]
[352283145,1739027439853,-500.0,9.999e-05,2]
[352283146,1739027439863,-500.0,9.999e-05,2]
[352283147,1739027439873,-500.0,9.999e-05,2]
[352283148,1739027439883,-500.0,9.999e-05,2]
[352283149,1739027439893,-1089.91,9.999e-05,2]
[352283150,1739027439903,-500.0,9.999e-05,2]
[352283151,1739027439916,-500.0,9.999e-05,2]
[352283152,1739027439926,-500.0,9.999e-05,2]
[352283153,1739027439936,-533.68,9.999e-05,2]
[352283154,1739027439946,-500.0,9.999e-05,2]
[352283155,1739027439955,-500.0,9.999e-05,2]
[352283156,1739027439965,-500.0,9.999e-05,2]
[352283157,1739027439974,-500.0,9.999e-05,2]
[352283158,1739027439983,-500.0,9.999e-05,2]
[352283159,1739027439993,-823.98,9.999e-05,2]
[352283160,1739027440003,-500.0,9.999e-05,2]
[352283161,1739027440012,-500.0,9.999e-05,2]
[352283162,1739027440021,-500.0,9.999e-05,2]
[352283163,1739027440031,-500.0,9.999e-05,2]
[352283164,1739027440040,-500.0,9.999e-05,2]
[352283165,1739027440050,-500.0,9.999e-05,2]
[352283166,1739027440059,-500.0,9.999e-05,2]
[352283167,1739027440069,-500.0,9.999e-05,2]
[352283168,1739027440078,-500.0,9.999e-05,2]
[352283169,1739027440087,-500.0,9.999e-05,2]
[352283170,1739027440097,-507.83503343,9.999e-05,2]
[352283171,1739027440106,-1008.8,9.999e-05,2]
[352283172,1739027440116,-500.0,9.999e-05,2]
[352283173,1739027440125,-500.0,9.999e-05,2]
[352283174,1739027440135,-500.0,9.999e-05,2]
[352283175,1739027440145,-500.0,9.999e-05,2]
[352283176,1739027440156,-500.0,9.999e-05,2]
[352283177,1739027440166,-500.0,9.999e-05,2]
[352283178,1739027440175,-500.0,9.999e-05,2]
[352283179,1739027440186,-500.0,9.999e-05,2]
[352283180,1739027440196,-500.0,9.999e-05,2]
[352283181,1739027440206,-581.99,9.999e-05,2]
[352283182,1739027440215,-500.0,9.999e-05,2]
[352283183,1739027440227,-500.0,9.999e-05,2]
[352283184,1739027440237,-500.0,9.999e-05,2]
[352283185,1739027440247,-500.0,9.999e-05,2]
[352283186,1739027440256,-500.0,9.999e-05,2]
[352283187,1739027440267,-500.0,9.999e-05,2]
[352283188,1739027440277,-500.0,9.999e-05,2]
[352283189,1739027440287,-784.71,9.999e-05,2]
[352283190,1739027440298,-500.0,9.999e-05,2]
[352283191,1739027440308,-500.0,9.999e-05,2]
[352283192,1739027440318,-500.0,9.999e-05,2]
[352283193,1739027440328,-500.0,9.999e-05,2]
[352283194,1739027440337,-500.0,9.999e-05,2]
[352283195,1739027440347,-831.94,9.999e-05,2]
[352283196,1739027440356,-500.0,9.999e-05,2]
[352283197,1739027440366,-500.0,9.999e-05,2]
[352283198,1739027440375,-500.0,9.999e-05,2]
[352283199,1739027440385,-638.54725306,9.999e-05,2]
[352283200,1739027440395,-500.0,9.999e-05,2]
[352283201,1739027440405,-500.0,9.999e-05,2]
[352283202,1739027440415,-500.0,9.999e-05,2]
[352283203,1739027440425,-500.0,9.999e-05,2]
[352283204,1739027440434,-500.0,9.999e-05,2]
[352283205,1739027440445,-500.0,9.999e-05,2]
[352283206,1739027440455,-500.0,9.999e-05,2]
[352283207,1739027440464,-500.0,9.999e-05,2]
[352283208,1739027440474,-500.0,9.999e-05,2]
[352283209,1739027440484,-500.0,9.999e-05,2]
[352283210,1739027440494,-500.0,9.999e-05,2]
[352283211,1739027440505,-500.0,9.999e-05,2]
[352283212,1739027440514,-589.43938948,9.999e-05,2]
[352283214,1739027440528,-973.63,9.999e-05,2]
[352283216,1739027440538,-544.24706232,9.999e-05,2]
[352283218,1739027440547,-500.0,9.999e-05,2]
[352283220,1739027440557,-500.0,9.999e-05,2]
[352283221,1739027440568,-390.78744761,9.999e-05,2]
[352283222,1739027440578,-500.0,9.999e-05,2]
[352283223,1739027440588,-500.0,9.999e-05,2]
[352283224,1739027440598,-836.46,9.999e-05,2]
[352283225,1739027440608,-562.48549259,9.999e-05,2]
[352283226,1739027440618,-500.0,9.999e-05,2]
[352283227,1739027440627,-500.0,9.999e-05,2]
[352283228,1739027440638,-500.0,9.999e-05,2]
[352283229,1739027440647,-500.0,9.999e-05,2]
[352283230,1739027440658,-766.94,9.999e-05,2]
[352283231,1739027440668,-500.0,9.999e-05,2]
[352283232,1739027440678,-168.90455467,9.999e-05,2]
[352283233,1739027440688,-500.0,9.999e-05,2]
[352283234,1739027440699,-500.0,9.999e-05,2]
[352283235,1739027440709,-500.0,9.999e-05,2]
[352283236,1739027440720,-741.88,9.999e-05,2]
[352283237,1739027440730,-500.0,9.999e-05,2]
[352283238,1739027440740,-1014.42,9.999e-05,2]
[352283239,1739027440751,-500.0,9.999e-05,2]
[352283240,1739027440761,-500.0,9.999e-05,2]
[352283241,1739027440771,-628.36,9.999e-05,2]
[352283242,1739027440781,-780.13,9.999e-05,2]
[352283243,1739027440791,-500.0,9.999e-05,2]
[352283244,1739027440801,-500.0,9.999e-05,2]
[352283245,1739027440812,-500.0,9.999e-05,2]
[352283246,1739027440822,-500.0,9.999e-05,2]
[352283247,1739027440833,-500.0,9.999e-05,2]
[352283248,1739027440843,-1278.75,9.999e-05,2]
[352283249,1739027440853,-861.32,9.999e-05,2]
[352283250,1739027440864,-500.0,9.999e-05,2]
[352283251,1739027440882,-500.0,9.999e-05,2]
[352283252,1739027440903,-876.47,9.999e-05,2]
[352283253,1739027440915,-510.05713909,9.999e-05,2]
[352283254,1739027440926,-752.48,9.999e-05,2]
[352283255,1739027440936,-500.0,9.999e-05,2]